Cogmind - Beta 15 @@@ ROGUE MODE // 2025.09.06 @ 13:21:48 Player: Ice_Kraken505 Result: Destroyed by S-10 Pest with Light Assault Rifle Performance ------------- Evolutions (0) 0 Regions Visited (1) 200 Robots Destroyed (2) 10 Value Destroyed (17) 17 Prototype IDs (0) 0 Alien Tech Used (0) 0 Bonus (0) 0 TOTAL SCORE: 227 Bonus ------- None Cogmind --------- Core Integrity 0/250 Matter 40/300 Energy 90/125 System Corruption 0% Temperature Cool (0) Movement Flying (200) Ox2 Location -10/Materials Parts ------- > --- POWER (1) -------- Light Ion Engine > --- PROPULSION (2) --- Flight Unit > --- UTILITY (2) ------ Small Storage Unit > --- WEAPON (2) ------- Light Assault Rifle > --- INVENTORY (8) ---- Flight Unit Structural Scanner ECM Suite Peak State ------------ > --- POWER ------------ Ion Engine > --- PROPULSION ------- Wheel Compact Wheel > --- UTILITY ---------- Small Storage Unit Improved Terrain Scanner > --- WEAPON ----------- Medium Laser > --- INVENTORY -------- (None) [Rating: 8] Favorites ----------- Power Ion Engine Engine Ion Engine Propulsion Wheel Wheel Wheel Flight Unit Flight Unit Utility Small Storage Unit Device Improved Terrain Scanner Storage Small Storage Unit Weapon Medium Laser Energy Gun Medium Laser Ballistic Gun Light Assault Rifle Build | -11 -10 ------- Run | Yrd Mat Slots Evolved . | . . Power . | . . Propulsion . | . . Utility . | . . Weapon . | . . Parts Attached 13 | 10 3 Power 3 | 2 1 Engine 3 | 2 1 Core . | . . Reactor . | . . Propulsion 4 | 3 1 Treads . | . . Leg . | . . Wheel 3 | 3 . Hover . | . . Flight 1 | . 1 Utility 3 | 3 . Device 2 | 2 . Storage 1 | 1 . Processor . | . . Hackware . | . . Protection . | . . Artifact . | . . Weapon 3 | 2 1 Energy Gun 2 | 2 . Energy Cannon . | . . Ballistic Gun 1 | . 1 Ballistic Cannon . | . . Launcher . | . . Special Weapon . | . . Impact Weapon . | . . Slashing Weapon . | . . Piercing Weapon . | . . Special Melee Weapon . | . . Unidentified Prototypes . | . . Parts Lost 9 | 4 5 Power 2 | 1 1 Propulsion 3 | 1 2 Utility 2 | 1 1 Weapon 2 | 1 1 Highest Loss Streak 5 | 4 5 To Critical Strikes . | . . Average Backups 1 | 1 1 Power . | . . Propulsion . | . . Utility . | . . Weapon . | . . Tool/Special . | . . Unused Backups 2 | . 2 Power . | . . Propulsion . | . . Utility 2 | . 2 Weapon . | . . Tool/Special . | . . Average Slot Usage (%) 79 | . 79 Engine 14 | . 14 Wheel 23 | . 23 Flight 1 | . 1 Device 12 | . 12 Storage 14 | . 14 Energy Gun 11 | . 11 Ballistic Gun 1 | . 1 Peak Build Rating 8 | 8 8 Average Rating 6 | 6 7 On Entrance 4 | . 8 Naked Turns . | . . Heaviest Build 15 | 15 13 Greatest Support 26 | 26 26 Greatest Overweight (x) 3 | 1 3 Average Overweight (x) . | . . Largest Inventory Capacity 8 | 8 8 Average Capacity 7 | 7 8 Most Carried 5 | 4 5 Average Carried 1 | 1 1 Final Capacity 8 | 8 8 Final Carried 3 | . 3 Class Distribution -------------------- 100% | Mutant Dominant Class ---------------- Mutant | -10/Materials Resources | -11 -10 ----------- Run | Yrd Mat Matter Collected 43 | 23 20 Remotely . | . . Salvage Created 43 | 23 20 Parts 7 | 4 3 Haulers Intercepted . | . . Recyclers Shooed . | . . Parts Field Recycled . | . . Retrieved Matter . | . . Parts Self-Destructed . | . . Prevented . | . . Kills | -11 -10 ------- Run | Yrd Mat Combat Hostiles Destroyed 2 | 1 1 Melee 1 | . 1 Guns 1 | 1 . Classes Destroyed 3 | 2 1 Tunneler 1 | 1 . Swarmer 1 | . 1 Assembled 1 | 1 . Best Kill Streak 1 | 1 1 Combat Bots Only 1 | 1 1 Max Kills in Single Turn 1 | 1 1 Gunslinging . | . . Exploded . | . . Melee 1 | . 1 Uniques/NPCs Destroyed . | . . Combat | -11 -10 -------- Run | Yrd Mat Hostile Shots Fired 75 | 15 60 Missed 16 | 3 13 Hits 59 | 12 47 Projectile 59 | 12 47 AOE 9 | 9 . Damage Taken 817 | 423 394 Core 253 | 104 149 Absorbed by Shields . | . . Core Remaining (%) 58 | 58 . Volleys Fired 12 | 7 5 Largest 2 | 2 1 Hottest 100 | 100 50 Shots Fired 14 | 9 5 Gun 14 | 9 5 Cannon . | . . Launcher . | . . Special . | . . Kinetic . | . . Thermal 14 | 9 5 Explosive . | . . Electromagnetic . | . . Robot Hit Streak 2 | 2 2 Robot Miss Streak 3 | 3 2 Penetration Max . | . . Secondary Targets . | . . Shots Hit Robots 5 | 3 2 Core Hits 5 | 2 3 Critical Kills . | . . Critical Parts Destroyed . | . . Critical Strikes . | . . Melee Attacks . | . . Impact . | . . Slashing . | . . Piercing . | . . Sneak Attacks . | . . Combat Hostiles . | . . Follow-up Attacks . | . . Damage Inflicted 81 | 37 44 Guns 61 | 36 25 Cannons . | . . Explosions . | . . Melee . | . . Ramming 20 | 1 19 Kinetic . | . . Thermal 61 | 36 25 Explosive . | . . Electromagnetic . | . . Impact . | . . Slashing . | . . Piercing . | . . Highest Corruption . | . . Average Corruption . | . . Corruption Purged . | . . Corruption Blocked . | . . Overload Shots . | . . Overflow Damage . | . . Projectiles . | . . Explosions . | . . Melee . | . . Knockbacks . | . . Impact . | . . Kinetic . | . . Secondary . | . . Self-Inflicted Damage 9 | . 9 Shots . | . . Rammed 8 | 1 7 Targets Rammed 8 | 1 7 Kicked . | . . Crushed . | . . Highest Temperature 50 | 50 50 Average Temperature 25 | 25 26 Received Heat Transfer . | . . Siege Activations . | . . Martial Activations . | . . Shielding Activations . | . . Robots Disrupted . | . . Combat Hostiles . | . . Robots Corrupted . | . . Combat Hostiles . | . . Parts Fried . | . . Impact Corruptions . | . . Robots Melted . | . . Combat Hostiles . | . . Parts Melted . | . . Heat Transferred 185 | 111 74 Parts Sabotaged . | . . Parts Stolen . | . . Parts Stripped . | . . Power Chain Reactions . | . . Alert | -11 -10 ------- Run | Yrd Mat Maximum Alert Level . | . . Low Security (%) 100 | 100 100 Level 1 . | . . Level 2 . | . . Level 3 . | . . Level 4 . | . . Level 5 . | . . High Security . | . . Max Security . | . . Peak Influence 20 | 5 20 Initial . | . . Average . | . 1 Influence Increases 31 | 5 26 Destroy 0b10 Robot/C 20 | . 20 Destroy 0b10 Robot/NC 5 | 5 . Successful Hack 6 | . 6 Influence Decreases 21 | 5 16 Time Decay 11 | 5 6 Lost Part 10 | . 10 Squads Dispatched . | . . Investigation . | . . Extermination . | . . Reinforcement . | . . Assault . | . . Garrison . | . . Intercept . | . . Searches Triggered . | . . Construction Impeded . | . . Haulers Reinforced . | . . Active Scanning Responses . | . . Cargo Convoy Interrupts . | . . Stealth | -11 -10 --------- Run | Yrd Mat Distress Signals . | . . Communications Jammed . | . . Distress Signals . | . . Times Spotted 9 | 6 3 Peak Tracking Total 5 | 5 3 Tactical Retreats . | . . Traps | -11 -10 ------- Run | Yrd Mat Traps Triggered . | . . Indirectly . | . . Trap Hack Attempts . | . . Triggered . | . . Disarmed . | . . Reprogrammed . | . . Reused . | . . Traps Extracted . | . . Installed . | . . Triggered . | . . Machines | -11 -10 ---------- Run | Yrd Mat Machines Disabled . | . . Max in Single Turn . | . . Machines Repaired . | . . Machines Dismantled . | . . Machines Sabotaged . | . . Overloaded Fab Kills . | . . Hacking | -11 -10 --------- Run | Yrd Mat Machines Accessed 1 | . 1 Terminals 1 | . 1 Fabricators . | . . Repair Stations . | . . Recycling Units . | . . Scanalyzers . | . . Garrison Access . | . . Total Hacks 2 | . 2 Successful 2 | . 2 Failed . | . . Catastrophic . | . . Database Lockouts . | . . Manual 2 | . 2 Terminals 2 | . 2 Fabricators . | . . Repair Stations . | . . Recycling Units . | . . Scanalyzers . | . . Garrison Access . | . . Terminal Hacks . | . . Fabricator Hacks . | . . Repair Station Hacks . | . . Recycling Unit Hacks . | . . Scanalyzer . | . . Garrison Access Hacks . | . . Unauthorized Hacks 2 | . 2 Terminals 2 | . 2 Track 1 | . 1 Operators 1 | . 1 Fabricators . | . . Repair Stations . | . . Recycling Units . | . . Scanalyzers . | . . Garrison Access . | . . Data Cores Recovered . | . . Used . | . . Hacking Detections . | . . Full Trace Events . | . . Feedback Events . | . . Feedback Blocked . | . . Robot Schematics Acquired . | . . Robots Built . | . . Authchips . | . . Time . | . . Total Robot Build Rating . | . . Part Schematics Acquired . | . . Parts Built . | . . Authchips . | . . Time . | . . Total Part Build Rating . | . . Parts Repaired . | . . Time . | . . Parts Recycled . | . . Recycled Matter . | . . Retrieved Matter . | . . Retrieved Components . | . . Parts Scanalyzed . | . . Part Schematics Acquired . | . . Parts Damaged . | . . Bothacking | -11 -10 ------------ Run | Yrd Mat Used RIF Installer . | . . Robots Hacked . | . . Non-combat . | . . Combat . | . . Robot Hacks Applied . | . . Relay Couplers Released . | . . Fabnet Peak Effective % . | . . Robots Rewired . | . . Allies Hacked . | . . Hacks Repelled . | . . Allies | -11 -10 -------- Run | Yrd Mat Total Allies . | . . Largest Group . | . . Highest-Rated Group . | . . Highest-Rated Ally . | . . Total Orders . | . . Ally Attacks . | . . Total Damage . | . . Kills . | . . Allies Corrupted . | . . Allies Melted . | . . Intel | -11 -10 ------- Run | Yrd Mat Active Infowar (turns) 418 | 200 218 Terrain 270 | 52 218 Seismic 148 | 148 . Robot Analysis Total . | . . Derelict Logs Recovered . | . . Drone Launches . | . . Drone Recoveries . | . . Exploration | -11 -10 ------------- Run | Yrd Mat Turns Passed 2379 | 2142 237 Spaces Moved 622 | 485 137 Core 10 | 9 1 Treads . | . . Legs . | . . Wheels 606 | 476 130 Hover . | . . Flight 6 | . 6 Fastest Speed 50 | 50 90 Average Speed 88 | 87 92 Slowest Speed 200 | 95 200 Overloaded Moves . | . . Propulsion Burnouts . | . . Robots Hopped . | . . Potential Cave-ins . | . . Cave-ins Triggered . | . . Exploration Rate (%) 56 | 82 30 Regions Visited 1 Branch Regions . Pre-discovered Areas . | . . Known Exits Taken . | . . Unknown Exits Taken 1 | 1 . Scrap Searched . | . . Spaces Dug . | . . Terrain Destroyed . | . . Melee . | . . Projectile . | . . AOE . | . . Terrain Rammed . | . . Walls Destroyed . | . . Machines Disabled . | . . Actions | -11 -10 --------- Run | Yrd Mat Total 2428 | 2191 237 Wait 1752 | 1678 74 Move 621 | 484 137 Hop . | . . Pick Up 17 | 10 7 Fast Attach . | . . Attach 14 | 10 4 Detach . | . . Swap 3 | 1 2 Drop 1 | . 1 Fire 12 | 7 5 Melee . | . . Ram 8 | 1 7 Kick . | . . Crush . | . . Escape Stasis . | . . Rewire . | . . Trap . | . . Miscellaneous . | . . Route ------- -11/Scrapyard -10/Materials (discovered 1 exit: [*Mat]) History --------- Turn | Location | Event 27 | -11/Scrapyard | Discovered new exit (range 15) 2037 | -11/Scrapyard | Assembled infested the area 2120 | -11/Scrapyard | Lost 4 parts (1p1n1u1w) 2143 | -11/Scrapyard | Entered Materials 2144 | -10/Materials | Build established: Mutant 2308 | -10/Materials | Discovered new exit (range 4) 2338 | -10/Materials | Core integrity fell below 50% 2365 | -10/Materials | Core integrity fell below 20% 2380 | -10/Materials | Destroyed by S-10 Pest with Light Assault Rifle Last Messages --------------- Acquired Com. Wheel. T-07 Excavator is excavating. EXIT=FOUND Med. Laser destroyed. Acquired ECM Suite. Com. Wheel destroyed. Slammed into S-10 Pest. Wheel destroyed. Slammed into S-10 Pest. Ion Engine broken. Destabilizing: Short circuit. Imp. Terrain Scanner destroyed. Slammed into S-10 Pest. S-10 Pest destroyed. [Achievement: Fist Fight] Acquired 20 matter. Acquired Lgt. Assault Rifle. Broken Ion Engine destroyed. Acquired Flight Unit. R-06 Scavenger collects Flight Unit. Map ----- +----------------------------------------------------+ | | | | | | | | | | | | | | | | | | | | | | | | | ?????????????###############?#####?????#??????#? | | ?????????????# ## ??#???#??????? | | ?????????????# ## " ??#???#??#?## | | ???????????? # """ """ """ ## """#???#?????## | | ?????????????# """ """ """ ## """#?????#????# | | ???????????? # """ """ """ ## """#??#???????# | | ??????? ?????# ## "" ##?????#???# | | ?????????????#######+####/### """#?????###??# | | ?????????#+####### ### ### ""#####?# #### | | ???????# + | """# ### # | | ???????# = ## " # < # # | | ???????########### ### ### # # ?# | | ?????????????????## ####/###+##+### ### ##### | | ????????#?????????# # @ss # | | ????????????????? + + ru | | ??????????????"? # # # | | ???????????????" # # #########+########## | | ??????????????"" ?# # #?????????????????## | | ????????????? ??# # #??????? ?????#???# | | ?????????????##???# ########??????????"?????## | | ????????????? ??? ????????????????????????# | | ?????????????????? #?????#??????????????????# | | ??????????????????# #?????????#??????????? ## | | ??????????????????? #?????? ??????????? ?? ??# | | ??????????????????? ????? ??????? ???????????# | | ??????????????????????????????????????????????# | | ??????????????????????????????????????????????## | | ???????????????????????????????????????????????? | | ???????????????????????????????????????????? ??? | | ???????????????????????????????????????????????? | | ???????????????????????????????????????????????? | | ???????????????????????????????????????????????? | | ???????????????????????????????????????????????? | | ???????????????????????????????????????????????? | | ???????????????????????????????????????????????? | | ???????????????????????????????????????????????? | | ???????????????????????????????????????????????? | | ???????????????????????????????????????????????? | +----------------------------------------------------+ Best States ------------- Heat Dissipation 25 Energy Generation 10 Energy Capacity 250 Matter Stores 100 Matter Capacity 300 Sight Range 16 Terrain Scan Range 16 Terrain Scan Density 10 Evasion (%) 50 Item Schematics ----------------- None Robot Schematics ------------------ None Fabricated ------------ Nothing Repaired ---------- Nothing Alien Tech Used ----------------- None Achievements -------------- Curiosity Killed The Cat Fist Fight True Hacker Challenges ------------ None Game ------ Seed RainbowMetaThermoblaster Manual? 0 Play Time 00:10:40 Cumulative 8.3 hours Start 2025.09.06 @ 13:13:51 End 2025.09.06 @ 13:21:48 Sessions 1 Manual Loads 0 Difficulty Rogue Special Mode None Game No. 9 Rogue 9 Adventurer 0 Explorer 0 Win Type - Total 0 Types 0/0/0/0/0/0/0/0/0/0 Lore% 3 Gallery% 11 Achievement% 16 Wizard Run 0 Options --------- Layout 1 ASCII 0 Keyboard 0 Movement Mouse Keybinds 0 Fullscreen 1 Font 24/Smallcaps Map View 50x35 Zoom Use 0% Tactical HUD 0 Map Filters NONE Filters NONE Steam 1 RUN: af19422b-e697-46db-a921-a2b92479156b